lending/lending_fUSD_20250224
["ID","MTS","AMOUNT","RATE_DAILY","PERIOD"]
[354233121,1740355870822,-788.97,0.00016684,2]
[354233122,1740355870832,-2383.45,0.00016684,2]
[354233123,1740355870841,-500.0,0.00016684,2]
[354233124,1740355870851,-1128.62,0.00016684,2]
[354233125,1740355870860,-530.33,0.00016684,2]
[354233126,1740355870869,-500.19,0.00016684,2]
[354233127,1740355870878,-1964.72,0.00016684,2]
[354233128,1740355870887,-3273.62,0.00016684,2]
[354233129,1740355870896,-856.6,0.00016684,2]
[354233130,1740355870905,-500.0,0.00016684,2]
[354233131,1740355870915,-500.0,0.00016684,2]
[354233132,1740355870924,-500.0,0.00016684,2]
[354233133,1740355870934,-519.18,0.00016684,2]
[354233134,1740355870944,-1531.31,0.00016684,2]
[354233135,1740355870953,-500.0,0.00016684,2]
[354233136,1740355870962,-2785.94,0.00016684,2]
[354233137,1740355870971,-1889.28,0.00016684,2]
[354233138,1740355870983,-2261.42,0.00016684,2]
[354233139,1740355870993,-500.0,0.00016684,2]
[354233140,1740355871003,-500.0,0.00016684,2]
[354233141,1740355871012,-3066.29,0.00016684,2]
[354233142,1740355871023,-1581.54,0.00016684,2]
[354233143,1740355871032,-2390.5,0.00016684,2]
[354233144,1740355871041,-1811.16,0.00016684,2]
[354233145,1740355871050,-500.0,0.00016684,2]
[354233146,1740355871062,-3595.91,0.00016684,2]
[354233147,1740355871071,-500.0,0.00016684,2]
[354233148,1740355871081,-788.15,0.00016684,2]
[354233149,1740355871090,-789.68,0.00016684,2]
[354233150,1740355871099,-1328.22,0.00016684,2]
[354233151,1740355871109,-545.90377938,0.00016684,2]
[354233152,1740355871118,-500.0,0.00016684,2]
[354233153,1740355871128,-862.14,0.00016684,2]
[354233154,1740355871137,-1525.54,0.00016684,2]
[354233155,1740355871146,-225.55908697,0.00016684,2]
[354233156,1740355871156,-1199.83,0.00016684,2]
[354233157,1740355871166,-500.0,0.00016684,2]
[354233158,1740355871176,-500.0,0.00016684,2]
[354233159,1740355871185,-1100.05,0.00016684,2]
[354233160,1740355871195,-1465.84,0.00016684,2]
[354233161,1740355871204,-1225.14,0.00016684,2]
[354233162,1740355871213,-500.0,0.00016684,2]
[354233163,1740355871222,-500.0,0.00016684,2]
[354233164,1740355871231,-500.0,0.00016684,2]
[354233165,1740355871241,-500.0,0.00016684,2]
[354233166,1740355871250,-1030.29,0.00016684,2]
[354233167,1740355871259,-1210.0,0.00016684,2]
[354233168,1740355871268,-4217.84,0.00016684,2]
[354233169,1740355871277,-500.0,0.00016684,2]
[354233170,1740355871286,-826.0,0.000167,2]
[354233171,1740355871295,-163.48,0.00016744,2]
[354233172,1740355871305,-12063.14885368,0.00016749,2]
[354233173,1740355871314,-500.0,0.00016766,2]
[354233174,1740355871322,-500.0,0.00016766,2]
[354233175,1740355871332,-182.627124,0.00016767,2]
[354233176,1740355871341,-615.0,0.00016767,2]
[354233177,1740355871350,-500.0,0.00016767,2]
[354233178,1740355871359,-500.0,0.00016767,2]
[354233179,1740355871368,-500.0,0.00016767,2]
[354233180,1740355871377,-500.0,0.00016767,2]
[354233181,1740355871386,-500.0,0.00016767,2]
[354233182,1740355871396,-483.43187344,0.00016767,2]
[354233183,1740355871405,-608.24,0.00016767,2]
[354233184,1740355871415,-500.0,0.00016767,2]
[354233185,1740355871424,-500.0,0.00016767,2]
[354233186,1740355871434,-634.76,0.00016767,2]
[354233187,1740355871443,-500.0,0.00016767,2]
[354233188,1740355871452,-500.0,0.00016767,2]
[354233189,1740355871461,-500.0,0.00016767,2]
[354233190,1740355871470,-500.0,0.00016767,2]
[354233191,1740355871479,-500.0,0.00016767,2]
[354233192,1740355871488,-500.0,0.00016767,2]
[354233193,1740355871497,-500.0,0.00016767,2]
[354233194,1740355871506,-500.0,0.00016767,2]
[354233195,1740355871515,-500.0,0.00016767,2]
[354233196,1740355871524,-500.0,0.00016767,2]
[354233197,1740355871533,-500.0,0.00016767,2]
[354233198,1740355871542,-364.6937924,0.00016767,2]
[354233199,1740355871551,-500.0,0.00016767,2]
[354233200,1740355871560,-500.0,0.00016767,2]
[354233201,1740355871569,-719.96,0.00016767,2]
[354233202,1740355871579,-500.0,0.00016767,2]
[354233203,1740355871588,-500.0,0.00016767,2]
[354233204,1740355871597,-500.0,0.00016767,2]
[354233205,1740355871606,-784.98,0.00016767,2]
[354233206,1740355871615,-500.0,0.00016767,2]
[354233207,1740355871624,-500.0,0.00016767,2]
[354233208,1740355871634,-500.0,0.00016767,2]
[354233209,1740355871643,-528.99,0.00016767,2]
[354233210,1740355871653,-500.0,0.00016767,2]
[354233211,1740355871663,-500.0,0.00016767,2]
[354233212,1740355871676,-539.41,0.00016767,2]
[354233213,1740355871686,-218.5441477,0.00016767,2]
[354233214,1740355871700,-544.65,0.00016767,2]
[354233215,1740355871711,-795.27,0.00016767,2]
[354233216,1740355871725,-1562.64,0.00016767,2]
[354233217,1740355871735,-770.65,0.00016767,2]
[354233218,1740355871746,-1793.15,0.00016767,2]
[354233219,1740355871756,-637.43,0.00016767,2]
[354233220,1740355871766,-500.0,0.00016767,2]
[354233221,1740355871778,-500.0,0.00016767,2]
[354233222,1740355871799,-672.59,0.00016767,2]
[354233223,1740355871809,-764.16,0.00016767,2]
[354233224,1740355871820,-1050.03,0.00016767,2]
[354233225,1740355871831,-500.0,0.00016767,2]
[354233226,1740355871841,-884.14,0.00016767,2]
[354233227,1740355871852,-500.0,0.00016767,2]
[354233228,1740355871861,-500.0,0.00016767,2]
[354233229,1740355871871,-800.44,0.00016767,2]
[354233230,1740355871881,-500.0,0.00016767,2]
[354233231,1740355871891,-756.97,0.00016767,2]
[354233232,1740355871900,-500.0,0.00016767,2]
[354233233,1740355871910,-500.0,0.00016767,2]
[354233234,1740355871923,-534.44638743,0.00016767,2]
[354233235,1740355871933,-500.0,0.00016767,2]
[354233236,1740355871942,-500.0,0.00016767,2]
[354233237,1740355871952,-500.0,0.00016767,2]
[354233238,1740355871962,-152.191271,0.00016767,2]
[354233239,1740355871972,-500.0,0.00016767,2]
[354233240,1740355871983,-500.0,0.00016767,2]
[354233241,1740355871994,-500.0,0.00016767,2]
[354233242,1740355872004,-987.02,0.00016767,2]
[354233243,1740355872013,-500.0,0.00016767,2]
[354233244,1740355872023,-500.0,0.00016767,2]
[354233245,1740355872032,-775.51,0.00016767,2]
[354233246,1740355872042,-852.52,0.00016767,2]
[354233247,1740355872052,-1178.91,0.00016767,2]
[354233248,1740355872064,-500.0,0.00016767,2]
[354233249,1740355872074,-522.53,0.00016767,2]
[354233250,1740355872083,-500.0,0.00016767,2]
[354233251,1740355872092,-1163.01,0.00016767,2]
[354233252,1740355872102,-500.0,0.00016767,2]
[354233253,1740355872111,-500.0,0.00016767,2]
[354233254,1740355872121,-500.0,0.00016767,2]
[354233255,1740355872130,-500.0,0.00016767,2]
[354233256,1740355872139,-500.0,0.00016767,2]
[354233257,1740355872149,-732.9,0.00016767,2]
[354233258,1740355872159,-500.0,0.00016767,2]
[354233259,1740355872169,-1258.6,0.00016767,2]
[354233260,1740355872179,-895.38,0.00016767,2]
[354233261,1740355872188,-500.0,0.00016767,2]
[354233262,1740355872198,-500.98,0.00016767,2]
[354233263,1740355872207,-500.0,0.00016767,2]
[354233264,1740355872217,-500.0,0.00016767,2]
[354233265,1740355872227,-500.0,0.00016767,2]
[354233266,1740355872236,-1159.68,0.00016767,2]
[354233267,1740355872245,-500.0,0.00016767,2]
[354233268,1740355872255,-502.34,0.00016767,2]
[354233269,1740355872264,-577.03,0.00016767,2]
[354233270,1740355872274,-1163.36,0.00016767,2]
[354233271,1740355872283,-500.0,0.00016767,2]
[354233272,1740355872293,-500.0,0.00016767,2]
[354233273,1740355872303,-500.0,0.00016767,2]
[354233274,1740355872312,-500.0,0.00016767,2]
[354233275,1740355872322,-774.24,0.00016767,2]
[354233276,1740355872332,-500.0,0.00016767,2]
[354233277,1740355872342,-500.0,0.00016767,2]
[354233278,1740355872351,-726.37,0.00016767,2]
[354233279,1740355872360,-500.0,0.00016767,2]
[354233280,1740355872369,-969.73,0.00016767,2]
[354233281,1740355872379,-1124.13,0.00016767,2]
[354233282,1740355872388,-858.08,0.00016767,2]
[354233283,1740355872397,-804.37,0.00016767,2]
[354233284,1740355872406,-500.0,0.00016767,2]
[354233285,1740355872415,-859.45,0.00016767,2]
[354233286,1740355872426,-500.0,0.00016767,2]
[354233287,1740355872436,-633.58,0.00016767,2]
[354233288,1740355872445,-500.0,0.00016767,2]
[354233289,1740355872454,-500.0,0.00016767,2]
[354233290,1740355872463,-1127.97,0.00016767,2]
[354233291,1740355872473,-500.0,0.00016767,2]
[354233292,1740355872482,-500.0,0.00016767,2]
[354233293,1740355872492,-1357.16,0.00016767,2]
[354233294,1740355872501,-872.42,0.00016767,2]
[354233295,1740355872510,-500.0,0.00016767,2]
[354233296,1740355872520,-500.0,0.00016767,2]
[354233297,1740355872529,-857.03,0.00016767,2]
[354233298,1740355872539,-500.0,0.00016767,2]
[354233299,1740355872549,-500.0,0.00016767,2]
[354233300,1740355872558,-391.82950082,0.00016767,2]
[354233301,1740355872567,-1158.5,0.00016767,2]
[354233302,1740355872577,-500.0,0.00016767,2]
[354233303,1740355872586,-1344.43,0.00016767,2]
[354233304,1740355872596,-500.0,0.00016767,2]
[354233305,1740355872605,-500.0,0.00016767,2]
[354233306,1740355872615,-676.98,0.00016767,2]
[354233307,1740355872624,-500.0,0.00016767,2]
[354233308,1740355872635,-640.2,0.00016767,2]
[354233309,1740355872644,-688.11,0.00016767,2]
[354233310,1740355872654,-500.0,0.00016767,2]
[354233311,1740355872664,-1345.2,0.00016767,2]
[354233312,1740355872674,-818.14,0.00016767,2]
[354233313,1740355872683,-500.0,0.00016767,2]
[354233314,1740355872693,-564.39,0.00016767,2]
[354233315,1740355872702,-500.0,0.00016767,2]
[354233316,1740355872712,-500.0,0.00016767,2]
[354233317,1740355872721,-1034.68,0.00016767,2]
[354233318,1740355872732,-716.04,0.00016767,2]
[354233319,1740355872741,-500.0,0.00016767,2]
[354233320,1740355872751,-500.0,0.00016767,2]
[354233321,1740355872761,-500.0,0.00016767,2]
[354233322,1740355872771,-551.68,0.00016767,2]
[354233323,1740355872780,-500.0,0.00016767,2]
[354233324,1740355872790,-500.0,0.00016767,2]
[354233325,1740355872807,-609.18,0.00016767,2]
[354233326,1740355872818,-500.0,0.00016767,2]
[354233327,1740355872826,-1071.24,0.00016767,2]
[354233328,1740355872836,-799.06,0.00016767,2]
[354233329,1740355872846,-1006.68,0.00016767,2]
[354233330,1740355872857,-1415.15,0.00016767,2]
[354233331,1740355872867,-402.65,0.00016767,2]
[354233332,1740355872878,-500.0,0.00016767,2]
[354233333,1740355872888,-784.83,0.00016767,2]
[354233334,1740355872899,-500.0,0.00016767,2]
[354233335,1740355872909,-500.0,0.00016767,2]
[354233336,1740355872920,-500.0,0.00016767,2]
[354233337,1740355872929,-151.0,0.00016767,2]
[354233338,1740355872939,-500.0,0.00016767,2]
[354233339,1740355872949,-766.77,0.00016767,2]
[354233340,1740355872959,-717.66,0.00016767,2]
[354233341,1740355872970,-500.0,0.00016767,2]
[354233342,1740355872980,-564.19,0.00016767,2]
[354233343,1740355872994,-500.0,0.00016767,2]
[354233344,1740355873003,-822.42,0.00016767,2]
[354233345,1740355873013,-712.5,0.00016767,2]
[354233346,1740355873023,-800.3,0.00016767,2]
[354233347,1740355873032,-500.0,0.00016767,2]
[354233348,1740355873041,-645.79,0.00016767,2]
[354233349,1740355873051,-671.89,0.00016767,2]
[354233350,1740355873064,-500.0,0.00016767,2]
[354233351,1740355873075,-500.0,0.00016767,2]
[354233352,1740355873084,-574.06,0.00016767,2]
[354233353,1740355873093,-500.0,0.00016767,2]
[354233354,1740355873103,-500.0,0.00016767,2]
[354233355,1740355873112,-1182.03,0.00016767,2]
[354233356,1740355873122,-500.0,0.00016767,2]
[354233357,1740355873132,-500.0,0.00016767,2]
[354233358,1740355873143,-763.67,0.00016767,2]
[354233359,1740355873152,-624.26,0.00016767,2]
[354233360,1740355873161,-600.40007937,0.00016767,2]
[354233361,1740355873171,-151.0,0.00016767,2]
[354233362,1740355873180,-530.75,0.00016767,2]
[354233363,1740355873190,-1371.95,0.00016767,2]
[354233364,1740355873199,-500.0,0.00016767,2]
[354233365,1740355873209,-1224.41,0.00016767,2]
[354233366,1740355873218,-500.0,0.00016767,2]
[354233367,1740355873228,-500.0,0.00016767,2]
[354233368,1740355873238,-748.14,0.00016767,2]
[354233369,1740355873248,-500.0,0.00016767,2]
[354233370,1740355873257,-546.35,0.00016767,2]
[354233371,1740355873267,-500.0,0.00016767,2]
[354233372,1740355873276,-863.94,0.00016767,2]
[354233373,1740355873286,-500.0,0.00016767,2]
[354233374,1740355873355,-500.0,0.00016767,2]
[354233375,1740355873364,-500.0,0.00016767,2]
[354233376,1740355873374,-528.04,0.00016767,2]
[354233377,1740355873383,-768.15,0.00016767,2]
[354233378,1740355873393,-500.0,0.00016767,2]
[354233379,1740355873402,-1333.13,0.00016767,2]
[354233380,1740355873411,-622.57606575,0.00016767,2]
[354233381,1740355873422,-670.41,0.00016767,2]
[354233382,1740355873431,-559.03884912,0.00016767,2]
[354233383,1740355873441,-724.95,0.00016767,2]
[354233384,1740355873451,-1220.59,0.00016767,2]
[354233385,1740355873460,-500.0,0.00016767,2]
[354233386,1740355873469,-783.43,0.00016767,2]
[354233387,1740355873478,-500.0,0.00016767,2]
[354233388,1740355873488,-500.0,0.00016767,2]
[354233389,1740355873497,-600.66217711,0.00016767,2]
[354233390,1740355873507,-500.0,0.00016767,2]
[354233391,1740355873516,-500.0,0.00016767,2]
[354233392,1740355873531,-500.0,0.00016767,2]
[354233393,1740355873540,-824.23,0.00016767,2]
[354233394,1740355873550,-530.29455458,0.00016767,2]
[354233395,1740355873559,-523.42,0.00016767,2]
[354233396,1740355873569,-500.0,0.00016767,2]
[354233397,1740355873579,-500.0,0.00016767,2]
[354233398,1740355873589,-519.41265405,0.00016767,2]
[354233399,1740355873598,-500.0,0.00016767,2]
[354233400,1740355873608,-500.0,0.00016767,2]
[354233401,1740355873617,-500.0,0.00016767,2]
[354233402,1740355873627,-405.68057691,0.00016767,2]
[354233403,1740355873636,-515.06313693,0.00016767,2]
[354233404,1740355873645,-500.0,0.00016767,2]
[354233405,1740355873653,-531.78137151,0.00016767,2]
[354233406,1740355873662,-1310.96,0.00016767,2]
[354233407,1740355873673,-782.62,0.00016767,2]
[354233408,1740355873681,-539.41,0.00016767,2]
[354233409,1740355873690,-1300.68,0.00016767,2]
[354233410,1740355873700,-500.0,0.00016767,2]
[354233411,1740355873709,-587.7,0.00016767,2]
[354233412,1740355873719,-570.43,0.00016767,2]
[354233413,1740355873729,-500.0,0.00016767,2]
[354233414,1740355873738,-635.96,0.00016767,2]
[354233415,1740355873748,-500.0,0.00016767,2]
[354233416,1740355873758,-500.0,0.00016767,2]
[354233417,1740355873767,-500.0,0.00016767,2]
[354233418,1740355873776,-500.0,0.00016767,2]
[354233419,1740355873785,-500.0,0.00016767,2]
[354233420,1740355873795,-500.0,0.00016767,2]
[354233421,1740355873803,-525.92,0.00016767,2]
[354233422,1740355873812,-1055.18,0.00016767,2]
[354233423,1740355873821,-500.0,0.00016767,2]
[354233424,1740355873830,-500.0,0.00016767,2]
[354233425,1740355873838,-500.0,0.00016767,2]
[354233426,1740355873847,-500.0,0.00016767,2]
[354233427,1740355873855,-500.0,0.00016767,2]
[354233428,1740355873863,-500.0,0.00016767,2]
[354233429,1740355873872,-500.0,0.00016767,2]
[354233430,1740355873881,-729.59,0.00016767,2]
[354233431,1740355873890,-1437.74,0.00016767,2]
[354233432,1740355873900,-163.54020949,0.00016767,2]
[354233433,1740355873909,-500.0,0.00016767,2]
[354233434,1740355873918,-1572.79,0.00016767,2]
[354233435,1740355873929,-789.72,0.00016767,2]
[354233436,1740355873938,-500.0,0.00016767,2]
[354233437,1740355873947,-500.0,0.00016767,2]
[354233438,1740355873956,-500.0,0.00016767,2]
[354233439,1740355873965,-500.0,0.00016767,2]
[354233440,1740355873974,-520.18,0.00016767,2]
[354233441,1740355873985,-500.0,0.00016767,2]
[354233442,1740355873995,-744.25,0.00016767,2]
[354233443,1740355874004,-500.0,0.00016767,2]
[354233444,1740355874013,-641.63,0.00016767,2]
[354233445,1740355874022,-500.0,0.00016767,2]
[354233446,1740355874030,-1659.6,0.00016767,2]
[354233447,1740355874039,-500.0,0.00016767,2]
[354233448,1740355874048,-500.0,0.00016767,2]
[354233449,1740355874058,-500.0,0.00016767,2]
[354233450,1740355874069,-500.0,0.00016767,2]
[354233451,1740355874079,-984.69,0.00016767,2]
[354233452,1740355874088,-500.0,0.00016767,2]
[354233453,1740355874098,-500.0,0.00016767,2]
[354233454,1740355874108,-500.0,0.00016767,2]
[354233455,1740355874117,-681.63,0.00016767,2]
[354233456,1740355874126,-1022.35,0.00016767,2]
[354233457,1740355874136,-500.0,0.00016767,2]
[354233458,1740355874145,-500.0,0.00016767,2]
[354233459,1740355874155,-500.0,0.00016767,2]
[354233460,1740355874164,-500.0,0.00016767,2]
[354233461,1740355874175,-500.0,0.00016767,2]
[354233462,1740355874185,-500.0,0.00016767,2]
[354233463,1740355874194,-500.0,0.00016767,2]
[354233464,1740355874203,-240.27870559,0.00016767,2]
[354233465,1740355874212,-500.0,0.00016767,2]
[354233466,1740355874222,-1348.63,0.00016767,2]
[354233467,1740355874231,-815.18,0.00016767,2]
[354233468,1740355874240,-1269.43,0.00016767,2]
[354233469,1740355874250,-500.0,0.00016767,2]
[354233470,1740355874259,-500.0,0.00016767,2]
[354233471,1740355874268,-530.89,0.00016767,2]
[354233472,1740355874277,-500.0,0.00016767,2]
[354233473,1740355874287,-500.0,0.00016767,2]
[354233474,1740355874296,-500.0,0.00016767,2]
[354233475,1740355874306,-506.49,0.00016767,2]
[354233476,1740355874315,-805.69,0.00016767,2]
[354233477,1740355874325,-500.0,0.00016767,2]
[354233478,1740355874335,-500.0,0.00016767,2]
[354233479,1740355874346,-1976.99,0.00016767,2]
[354233480,1740355874356,-500.0,0.00016767,2]
[354233481,1740355874367,-500.0,0.00016767,2]
[354233482,1740355874377,-500.0,0.00016767,2]
[354233483,1740355874388,-618.93,0.00016767,2]
[354233484,1740355874398,-500.0,0.00016767,2]
[354233485,1740355874407,-500.0,0.00016767,2]
[354233486,1740355874417,-504.42,0.00016767,2]
[354233487,1740355874428,-500.0,0.00016767,2]
[354233488,1740355874438,-756.2,0.00016767,2]
[354233489,1740355874448,-1647.49,0.00016767,2]
[354233490,1740355874459,-1492.14,0.00016767,2]
[354233491,1740355874469,-1925.73,0.00016767,2]
[354233492,1740355874479,-500.0,0.00016767,2]
[354233493,1740355874488,-500.0,0.00016767,2]
[354233494,1740355874498,-500.0,0.00016767,2]
[354233495,1740355874507,-500.0,0.00016767,2]
[354233496,1740355874517,-500.0,0.00016767,2]
[354233497,1740355874527,-500.0,0.00016767,2]
[354233498,1740355874536,-500.0,0.00016767,2]
[354233499,1740355874546,-3422.24,0.00016767,2]
[354233500,1740355874555,-725.89,0.00016767,2]
[354233501,1740355874565,-500.0,0.00016767,2]
[354233502,1740355874575,-500.0,0.00016767,2]
[354233503,1740355874585,-938.42,0.00016767,2]
[354233504,1740355874595,-790.45,0.00016767,2]
[354233505,1740355874605,-500.0,0.00016767,2]
[354233506,1740355874614,-500.0,0.00016767,2]
[354233507,1740355874624,-1074.79,0.00016767,2]
[354233508,1740355874633,-500.0,0.00016767,2]
[354233509,1740355874643,-645.67,0.00016767,2]
[354233510,1740355874652,-551.78,0.00016767,2]
[354233511,1740355874662,-500.0,0.00016767,2]
[354233512,1740355874672,-500.0,0.00016767,2]
[354233513,1740355874682,-536.5,0.00016767,2]
[354233514,1740355874692,-500.0,0.00016767,2]
[354233515,1740355874702,-500.0,0.00016767,2]
[354233516,1740355874712,-500.0,0.00016767,2]
[354233517,1740355874722,-500.0,0.00016767,2]
[354233518,1740355874732,-2403.21,0.00016767,2]
[354233519,1740355874741,-500.0,0.00016767,2]
[354233520,1740355874750,-500.0,0.00016767,2]
[354233521,1740355874760,-500.0,0.00016767,2]
[354233522,1740355874770,-500.0,0.00016767,2]
[354233523,1740355874780,-500.0,0.00016767,2]
[354233524,1740355874790,-500.0,0.00016767,2]
[354233525,1740355874800,-1551.5,0.00016767,2]
[354233526,1740355874809,-500.0,0.00016767,2]
[354233527,1740355874819,-500.0,0.00016767,2]
[354233528,1740355874827,-6343.05,0.00016767,2]
[354233529,1740355874837,-500.0,0.00016767,2]
[354233530,1740355874847,-500.0,0.00016767,2]
[354233531,1740355874858,-889.84,0.00016767,2]
[354233532,1740355874868,-500.0,0.00016767,2]
[354233533,1740355874878,-500.0,0.00016767,2]
[354233534,1740355874887,-500.0,0.00016767,2]
[354233535,1740355874897,-500.0,0.00016767,2]
[354233536,1740355874907,-500.0,0.00016767,2]
[354233537,1740355874917,-500.0,0.00016767,2]
[354233538,1740355874929,-1036.1,0.00016767,2]
[354233539,1740355874939,-800.22,0.00016767,2]
[354233540,1740355874948,-500.0,0.00016767,2]
[354233541,1740355874958,-500.0,0.00016767,2]
[354233542,1740355874967,-500.0,0.00016767,2]
[354233543,1740355874977,-3673.96,0.00016767,2]
[354233544,1740355874989,-1128.56,0.00016767,2]
[354233545,1740355874999,-292.154633,0.00016767,2]
[354233546,1740355875008,-292.154633,0.00016767,2]
[354233547,1740355875018,-500.0,0.00016767,2]
[354233548,1740355875029,-1275.22,0.00016767,2]
[354233549,1740355875040,-500.0,0.00016767,2]
[354233550,1740355875050,-292.154633,0.00016767,2]
[354233551,1740355875063,-500.0,0.00016767,2]
[354233552,1740355875073,-292.154633,0.00016767,2]
[354233553,1740355875083,-3238.87,0.00016767,2]
[354233554,1740355875092,-2791.47,0.00016767,2]
[354233555,1740355875102,-1108.25,0.00016767,2]
[354233556,1740355875112,-500.0,0.00016767,2]
[354233557,1740355875122,-670.61,0.00016767,2]
[354233558,1740355875132,-654.52,0.00016767,2]
[354233559,1740355875141,-1547.6,0.00016767,2]
[354233560,1740355875151,-697.59,0.00016767,2]
[354233561,1740355875161,-500.0,0.00016767,2]
[354233562,1740355875172,-500.0,0.00016767,2]
[354233563,1740355875183,-1611.96,0.00016767,2]
[354233564,1740355875193,-3395.33,0.00016767,2]
[354233565,1740355875203,-927.34,0.00016767,2]
[354233566,1740355875212,-500.0,0.00016767,2]
[354233567,1740355875222,-500.0,0.00016767,2]
[354233568,1740355875232,-4134.6,0.00016767,2]
[354233569,1740355875242,-1748.74,0.00016767,2]
[354233570,1740355875251,-500.0,0.00016767,2]
[354233571,1740355875261,-500.0,0.00016767,2]
[354233572,1740355875271,-2787.95,0.00016767,2]
[354233573,1740355875281,-1114.38,0.00016767,2]
[354233574,1740355875290,-500.0,0.00016767,2]
[354233575,1740355875299,-930.5,0.00016767,2]
[354233576,1740355875309,-500.0,0.00016767,2]
[354233577,1740355875319,-858.58,0.00016767,2]
[354233578,1740355875329,-1751.06,0.00016767,2]
[354233579,1740355875338,-1413.15,0.00016767,2]
[354233580,1740355875347,-500.0,0.00016767,2]
[354233581,1740355875356,-866.59,0.00016767,2]
[354233582,1740355875366,-2394.06,0.00016767,2]
[354233583,1740355875376,-500.0,0.00016767,2]
[354233584,1740355875385,-1189.52,0.00016767,2]
[354233585,1740355875394,-500.0,0.00016767,2]
[354233586,1740355875404,-1741.93,0.00016767,2]
[354233587,1740355875413,-500.0,0.00016767,2]
[354233588,1740355875423,-500.0,0.00016767,2]
[354233589,1740355875434,-743.81,0.00016767,2]
[354233590,1740355875444,-737.07,0.00016767,2]
[354233591,1740355875454,-1914.85,0.00016767,2]
[354233592,1740355875463,-500.0,0.00016767,2]
[354233593,1740355875472,-804.47,0.00016767,2]
[354233594,1740355875482,-500.0,0.00016767,2]
[354233595,1740355875491,-1036.08,0.00016767,2]
[354233596,1740355875500,-8331.88,0.00016767,2]
[354233597,1740355875508,-500.0,0.00016767,2]
[354233598,1740355875517,-1908.86,0.00016767,2]
[354233599,1740355875527,-2009.93,0.00016767,2]
[354233600,1740355875536,-2608.37,0.00016767,2]
[354233601,1740355875545,-500.0,0.00016767,2]
[354233602,1740355875554,-1361.11,0.00016767,2]
[354233603,1740355875562,-501.66,0.00016767,2]
[354233604,1740355875571,-500.0,0.00016767,2]
[354233605,1740355875580,-691.95,0.00016767,2]
[354233606,1740355875589,-2882.94,0.00016767,2]
[354233607,1740355875598,-611.93,0.00016767,2]
[354233608,1740355875607,-500.0,0.00016767,2]
[354233609,1740355875615,-1568.68,0.00016767,2]
[354233610,1740355875624,-1466.11,0.00016767,2]
[354233611,1740355875633,-2172.12,0.00016767,2]
[354233612,1740355875642,-1861.44,0.00016767,2]
[354233613,1740355875651,-2320.89,0.00016767,2]
[354233614,1740355875660,-1515.0,0.00016767,2]
[354233615,1740355875669,-736.14,0.00016767,2]
[354233616,1740355875679,-500.0,0.00016767,2]
[354233617,1740355875688,-500.0,0.00016767,2]
[354233618,1740355875697,-1516.62,0.00016767,2]
[354233619,1740355875706,-500.0,0.00016767,2]
[354233620,1740355875715,-1999.75,0.00016767,2]